[Event "*** SCC Grand Prix: Titled Tuesday Blitz"]
[Site "Chess.com"]
[Date "2020.07.14"]
[Round "8"]
[White "Olga_Zhuravleva"]
[Black "GAusal"]
[Result "1-0"]
[WhiteElo "2311"]
[BlackElo "2069"]
[TimeControl "180+1"]
[EndTime "11:33:27 PDT"]
[Termination "Olga_Zhuravleva won by resignation"]

1. e4 {[%clk 0:03:00.9]} 1... c5 {[%clk 0:02:58.8]} 2. Nf3 {[%clk 0:02:59.9]}
2... d6 {[%clk 0:02:57.7]} 3. d4 {[%clk 0:03:00.3]} 3... cxd4 {[%clk 0:02:57.2]}
4. Nxd4 {[%clk 0:03:01.2]} 4... Nc6 {[%clk 0:02:57.2]} 5. Nc3 {[%clk 0:03:01.4]}
5... g6 {[%clk 0:02:57.3]} 6. Nb3 {[%clk 0:03:00.2]} 6... Bg7 {[%clk 0:02:56.9]}
7. Be2 {[%clk 0:03:00.9]} 7... Nf6 {[%clk 0:02:56.7]} 8. O-O {[%clk 0:03:01.4]}
8... O-O {[%clk 0:02:56.6]} 9. Re1 {[%clk 0:03:02]} 9... Bd7 {[%clk 0:02:55.7]}
10. Bf1 {[%clk 0:03:02.4]} 10... Rc8 {[%clk 0:02:55.7]} 11. Bg5 {[%clk
0:03:02.9]} 11... Ne5 {[%clk 0:02:51.9]} 12. Nd5 {[%clk 0:03:01.4]} 12... Nxd5
{[%clk 0:02:25]} 13. exd5 {[%clk 0:03:00.5]} 13... Nc4 {[%clk 0:02:24.9]} 14.
Bxe7 {[%clk 0:02:55.9]} 14... Qb6 {[%clk 0:02:22.9]} 15. Bxf8 {[%clk 0:02:48.3]}
15... Bxf8 {[%clk 0:02:21.2]} 16. Rb1 {[%clk 0:02:44.7]} 16... a5 {[%clk
0:02:14.1]} 17. c3 {[%clk 0:02:42.4]} 17... a4 {[%clk 0:02:13.6]} 18. Nd4 {[%clk
0:02:41.3]} 18... Ne5 {[%clk 0:02:13.5]} 19. h3 {[%clk 0:02:37.8]} 19... a3
{[%clk 0:02:05.6]} 20. bxa3 {[%clk 0:02:37.1]} 20... Qc5 {[%clk 0:02:05.6]} 21.
f4 {[%clk 0:02:08.2]} 21... Nc4 {[%clk 0:01:59.9]} 22. Rxb7 {[%clk 0:02:03]}
22... Be8 {[%clk 0:01:54.2]} 23. Bxc4 {[%clk 0:01:57.1]} 23... Qxc4 {[%clk
0:01:45.3]} 24. Qb3 {[%clk 0:01:57.4]} 24... Qd3 {[%clk 0:01:38.5]} 25. Nc6
{[%clk 0:01:25.1]} 25... Bxc6 {[%clk 0:01:28.9]} 26. dxc6 {[%clk 0:01:24.5]}
26... Rxc6 {[%clk 0:01:29]} 27. Qxf7+ {[%clk 0:01:23.3]} 1-0

[Event "*** SCC Grand Prix: Titled Tuesday Blitz"]
[Site "Chess.com"]
[Date "2020.07.14"]
[Round "8"]
[White "MustafayevFarid2004"]
[Black "WildTricks"]
[Result "1-0"]
[WhiteElo "2381"]
[BlackElo "2505"]
[TimeControl "180+1"]
[EndTime "11:33:29 PDT"]
[Termination "MustafayevFarid2004 won by resignation"]

1. d4 {[%clk 0:03:00.9]} 1... Nf6 {[%clk 0:02:59]} 2. c4 {[%clk 0:02:56.8]} 2...
e6 {[%clk 0:02:59.1]} 3. Nc3 {[%clk 0:02:56.8]} 3... Bb4 {[%clk 0:02:58.6]} 4.
e3 {[%clk 0:02:56]} 4... c5 {[%clk 0:02:58.4]} 5. Bd3 {[%clk 0:02:55.1]} 5...
O-O {[%clk 0:02:57.8]} 6. Ne2 {[%clk 0:02:55.1]} 6... cxd4 {[%clk 0:02:57.5]} 7.
exd4 {[%clk 0:02:55.1]} 7... d5 {[%clk 0:02:57.5]} 8. cxd5 {[%clk 0:02:53.4]}
8... Qxd5 {[%clk 0:02:58.4]} 9. O-O {[%clk 0:02:48.7]} 9... Qd8 {[%clk
0:02:57.5]} 10. Bg5 {[%clk 0:02:41.1]} 10... Be7 {[%clk 0:02:53.8]} 11. Rc1
{[%clk 0:02:34.9]} 11... Nc6 {[%clk 0:02:52.9]} 12. Bb1 {[%clk 0:02:30.8]} 12...
b6 {[%clk 0:02:47.1]} 13. Bxf6 {[%clk 0:02:00.5]} 13... Bxf6 {[%clk 0:02:44]}
14. d5 {[%clk 0:02:00.9]} 14... Ne5 {[%clk 0:02:26.9]} 15. Be4 {[%clk
0:01:58.1]} 15... Rb8 {[%clk 0:01:59]} 16. Nd4 {[%clk 0:01:43.6]} 16... Nc4
{[%clk 0:01:49]} 17. Nc6 {[%clk 0:01:40.8]} 17... Qd6 {[%clk 0:01:37.1]} 18. Nb5
{[%clk 0:01:27.8]} 18... Qb4 {[%clk 0:01:04.5]} 19. Nxb4 {[%clk 0:01:27.2]} 1-0

[Event "*** SCC Grand Prix: Titled Tuesday Blitz"]
[Site "Chess.com"]
[Date "2020.07.14"]
[Round "8"]
[White "RodinMihail"]
[Black "jacky72"]
[Result "1-0"]
[WhiteElo "2481"]
[BlackElo "2637"]
[TimeControl "180+1"]
[EndTime "11:33:38 PDT"]
[Termination "RodinMihail won by resignation"]

1. e4 {[%clk 0:03:00.9]} 1... e5 {[%clk 0:03:00]} 2. Nf3 {[%clk 0:03:00.8]} 2...
Nc6 {[%clk 0:03:00.2]} 3. Nc3 {[%clk 0:03:01.4]} 3... Nf6 {[%clk 0:03:00.1]} 4.
d4 {[%clk 0:03:01.9]} 4... exd4 {[%clk 0:03:01]} 5. Nxd4 {[%clk 0:03:02.4]} 5...
Bb4 {[%clk 0:03:01.6]} 6. Nxc6 {[%clk 0:03:02.2]} 6... bxc6 {[%clk 0:03:02.5]}
7. Bd3 {[%clk 0:03:02.5]} 7... d5 {[%clk 0:03:03]} 8. exd5 {[%clk 0:03:03.4]}
8... O-O {[%clk 0:03:03.4]} 9. O-O {[%clk 0:03:03.3]} 9... cxd5 {[%clk 0:03:04]}
10. Bg5 {[%clk 0:03:03.2]} 10... c6 {[%clk 0:03:04.6]} 11. Qf3 {[%clk
0:03:03.5]} 11... Bd6 {[%clk 0:03:05]} 12. h3 {[%clk 0:03:03.4]} 12... Rb8
{[%clk 0:03:05]} 13. b3 {[%clk 0:03:03.6]} 13... Be5 {[%clk 0:03:02.6]} 14. Bf4
{[%clk 0:03:03.7]} 14... Bxc3 {[%clk 0:03:01.5]} 15. Bxb8 {[%clk 0:03:03.8]}
15... Bxa1 {[%clk 0:03:00.9]} 16. Rxa1 {[%clk 0:03:03.1]} 16... Bg4 {[%clk
0:02:57.2]} 17. hxg4 {[%clk 0:03:03.2]} 17... Qxb8 {[%clk 0:02:57.8]} 18. Re1
{[%clk 0:03:03.4]} 18... Re8 {[%clk 0:02:57.7]} 19. Rxe8+ {[%clk 0:03:01.5]}
19... Qxe8 {[%clk 0:02:58.6]} 20. g5 {[%clk 0:02:53.5]} 20... Nd7 {[%clk
0:02:53.1]} 21. Qf4 {[%clk 0:02:29.9]} 21... g6 {[%clk 0:02:46.6]} 22. g3 {[%clk
0:02:27]} 22... Qe5 {[%clk 0:02:45.7]} 23. Qxe5 {[%clk 0:02:24.2]} 23... Nxe5
{[%clk 0:02:46.6]} 24. Be2 {[%clk 0:02:24.5]} 24... d4 {[%clk 0:02:43.1]} 25. f4
{[%clk 0:02:22.4]} 25... Nd7 {[%clk 0:02:43.7]} 26. Kf2 {[%clk 0:02:20.3]} 26...
Kf8 {[%clk 0:02:38.9]} 27. Ke1 {[%clk 0:02:18.4]} 27... Ke7 {[%clk 0:02:36.8]}
28. Kd2 {[%clk 0:02:19]} 28... Kd6 {[%clk 0:02:37]} 29. Bc4 {[%clk 0:02:10.4]}
29... f6 {[%clk 0:02:36.5]} 30. Kd3 {[%clk 0:01:56.8]} 30... fxg5 {[%clk
0:02:35.9]} 31. fxg5 {[%clk 0:01:55]} 31... Ne5+ {[%clk 0:02:34.1]} 32. Kxd4
{[%clk 0:01:54]} 32... Nf3+ {[%clk 0:02:34.3]} 33. Ke3 {[%clk 0:01:51.1]} 33...
Nxg5 {[%clk 0:02:35.2]} 34. Kf4 {[%clk 0:01:51.1]} 34... h6 {[%clk 0:02:28.1]}
35. b4 {[%clk 0:01:39.4]} 35... c5 {[%clk 0:02:23.5]} 36. b5 {[%clk 0:01:37]}
36... Ne6+ {[%clk 0:02:22.1]} 37. Bxe6 {[%clk 0:01:30.6]} 37... Kxe6 {[%clk
0:02:23]} 38. c4 {[%clk 0:01:29.8]} 38... Kf6 {[%clk 0:02:22.1]} 39. a4 {[%clk
0:01:29]} 39... Ke6 {[%clk 0:02:21.8]} 40. a5 {[%clk 0:01:29.3]} 40... Kd6
{[%clk 0:02:22.2]} 41. Ke4 {[%clk 0:01:29.4]} 41... Kc7 {[%clk 0:02:10.4]} 42.
Ke5 {[%clk 0:01:27.9]} 42... g5 {[%clk 0:02:03.7]} 43. Kf5 {[%clk 0:01:27.7]}
43... Kd6 {[%clk 0:02:03.3]} 44. g4 {[%clk 0:01:25.2]} 44... h5 {[%clk
0:02:02.3]} 45. gxh5 {[%clk 0:01:24]} 45... g4 {[%clk 0:02:03.2]} 46. Kxg4
{[%clk 0:01:23.9]} 1-0

[Event "*** SCC Grand Prix: Titled Tuesday Blitz"]
[Site "Chess.com"]
[Date "2020.07.14"]
[Round "8"]
[White "romulocardoso"]
[Black "Tekushka"]
[Result "0-1"]
[WhiteElo "2115"]
[BlackElo "2358"]
[TimeControl "180+1"]
[EndTime "11:33:40 PDT"]
[Termination "Tekushka won by resignation"]

1. e4 {[%clk 0:02:45.6]} 1... c5 {[%clk 0:02:59.1]} 2. Nf3 {[%clk 0:02:46]} 2...
Nc6 {[%clk 0:02:59.1]} 3. d4 {[%clk 0:02:46.6]} 3... cxd4 {[%clk 0:02:59.3]} 4.
Nxd4 {[%clk 0:02:47.5]} 4... e6 {[%clk 0:02:59.6]} 5. Nc3 {[%clk 0:02:47.6]}
5... d6 {[%clk 0:02:59.9]} 6. Be2 {[%clk 0:02:47.7]} 6... Nf6 {[%clk 0:02:59.3]}
7. O-O {[%clk 0:02:48.2]} 7... Be7 {[%clk 0:02:59.5]} 8. f4 {[%clk 0:02:47.7]}
8... O-O {[%clk 0:02:57.8]} 9. Bf3 {[%clk 0:02:47.8]} 9... Bd7 {[%clk
0:02:53.3]} 10. Kh1 {[%clk 0:02:47.6]} 10... Nxd4 {[%clk 0:02:49.8]} 11. Qxd4
{[%clk 0:02:48.5]} 11... Bc6 {[%clk 0:02:49.9]} 12. g4 {[%clk 0:02:43.1]} 12...
b5 {[%clk 0:02:42.8]} 13. g5 {[%clk 0:02:41.9]} 13... Nd7 {[%clk 0:02:42.6]} 14.
Bg2 {[%clk 0:02:39]} 14... e5 {[%clk 0:02:38.5]} 15. Qd3 {[%clk 0:02:34.1]}
15... exf4 {[%clk 0:02:35]} 16. Bxf4 {[%clk 0:02:35]} 16... Ne5 {[%clk
0:02:18.5]} 17. Qg3 {[%clk 0:02:34.4]} 17... b4 {[%clk 0:02:17.9]} 18. Nd5
{[%clk 0:02:32]} 18... Bxd5 {[%clk 0:02:17]} 19. exd5 {[%clk 0:02:32.9]} 19...
Ng6 {[%clk 0:02:17]} 20. Be3 {[%clk 0:02:31.3]} 20... Rc8 {[%clk 0:02:06.1]} 21.
Be4 {[%clk 0:02:31.3]} 21... Rc4 {[%clk 0:02:05]} 22. Bd3 {[%clk 0:02:31.4]}
22... Rc7 {[%clk 0:01:51.2]} 23. h4 {[%clk 0:02:31.1]} 23... Ne5 {[%clk
0:01:49.5]} 24. Be4 {[%clk 0:02:27.5]} 24... Rc4 {[%clk 0:01:46.9]} 25. Rf4
{[%clk 0:02:07.8]} 25... Qc7 {[%clk 0:01:12.1]} 26. Raf1 {[%clk 0:01:57.4]}
26... Ng6 {[%clk 0:00:55.5]} 27. R4f3 {[%clk 0:01:51.1]} 27... Rxe4 {[%clk
0:00:54.5]} 0-1

[Event "*** SCC Grand Prix: Titled Tuesday Blitz"]
[Site "Chess.com"]
[Date "2020.07.14"]
[Round "8"]
[White "bratkoo"]
[Black "kassablanca"]
[Result "1-0"]
[WhiteElo "2481"]
[BlackElo "2607"]
[TimeControl "180+1"]
[EndTime "11:33:50 PDT"]
[Termination "bratkoo won by resignation"]

1. e4 {[%clk 0:03:00.9]} 1... e6 {[%clk 0:02:59.3]} 2. d4 {[%clk 0:02:57.7]}
2... d5 {[%clk 0:02:59.5]} 3. Nc3 {[%clk 0:02:50.2]} 3... Nf6 {[%clk 0:02:59.5]}
4. e5 {[%clk 0:02:46.1]} 4... Nfd7 {[%clk 0:02:58.8]} 5. f4 {[%clk 0:02:46.7]}
5... c5 {[%clk 0:02:58.2]} 6. Nf3 {[%clk 0:02:47.3]} 6... Nc6 {[%clk 0:02:58.5]}
7. Be3 {[%clk 0:02:47.7]} 7... a6 {[%clk 0:02:58.9]} 8. Qd2 {[%clk 0:02:47]}
8... b5 {[%clk 0:02:59]} 9. Nd1 {[%clk 0:02:46.9]} 9... Bb7 {[%clk 0:02:53.9]}
10. Nf2 {[%clk 0:02:46.8]} 10... c4 {[%clk 0:02:51.5]} 11. g4 {[%clk 0:02:45.6]}
11... h5 {[%clk 0:02:51]} 12. h3 {[%clk 0:02:44.8]} 12... hxg4 {[%clk
0:02:50.5]} 13. hxg4 {[%clk 0:02:45.1]} 13... Rxh1 {[%clk 0:02:50.6]} 14. Nxh1
{[%clk 0:02:45.7]} 14... Nb6 {[%clk 0:02:49.9]} 15. a3 {[%clk 0:02:41.5]} 15...
a5 {[%clk 0:02:45.7]} 16. Be2 {[%clk 0:02:38]} 16... b4 {[%clk 0:02:45.4]} 17.
axb4 {[%clk 0:02:37.2]} 17... axb4 {[%clk 0:02:45.3]} 18. Rxa8 {[%clk
0:02:36.2]} 18... Qxa8 {[%clk 0:02:46.2]} 19. f5 {[%clk 0:02:33.1]} 19... Qa1+
{[%clk 0:02:42.7]} 20. Qc1 {[%clk 0:02:33.1]} 20... Qxc1+ {[%clk 0:02:40]} 21.
Bxc1 {[%clk 0:02:33.7]} 21... Na4 {[%clk 0:02:31.1]} 22. Ng3 {[%clk 0:02:31.7]}
22... Bc8 {[%clk 0:02:28.1]} 23. Bd1 {[%clk 0:02:25.9]} 23... Bd7 {[%clk
0:02:25.9]} 24. c3 {[%clk 0:02:22.1]} 24... Na5 {[%clk 0:02:12.5]} 25. Bxa4
{[%clk 0:02:14.8]} 25... Bxa4 {[%clk 0:02:11.9]} 26. cxb4 {[%clk 0:02:15.2]}
26... Nb3 {[%clk 0:02:11.1]} 27. Bd2 {[%clk 0:02:14.1]} 27... Nxd2 {[%clk
0:02:10.5]} 28. Kxd2 {[%clk 0:02:14.4]} 28... Bxb4+ {[%clk 0:02:10.9]} 29. Ke3
{[%clk 0:02:14.5]} 29... Bc2 {[%clk 0:02:04.5]} 30. Ng5 {[%clk 0:02:09.6]} 30...
Ke7 {[%clk 0:02:02]} 31. fxe6 {[%clk 0:01:58.4]} 31... fxe6 {[%clk 0:02:00.9]}
32. Nh5 {[%clk 0:01:58.6]} 32... g6 {[%clk 0:01:51.2]} 33. Nf4 {[%clk
0:01:58.6]} 33... Kd7 {[%clk 0:01:24.5]} 34. Ngxe6 {[%clk 0:01:56.8]} 34... Kc6
{[%clk 0:01:22.9]} 35. Nd8+ {[%clk 0:01:46.1]} 35... Kd7 {[%clk 0:01:21.8]} 36.
Nxd5 {[%clk 0:01:43.4]} 36... Be7 {[%clk 0:01:18]} 37. Nxe7 {[%clk 0:01:41.8]}
37... Kxe7 {[%clk 0:01:18.1]} 38. Nc6+ {[%clk 0:01:40.6]} 38... Ke6 {[%clk
0:01:18.1]} 39. d5+ {[%clk 0:01:39.7]} 39... Kd7 {[%clk 0:01:16.3]} 40. Kd4
{[%clk 0:01:39]} 1-0

[Event "*** SCC Grand Prix: Titled Tuesday Blitz"]
[Site "Chess.com"]
[Date "2020.07.14"]
[Round "8"]
[White "binbin239"]
[Black "Irishchessman16"]
[Result "0-1"]
[WhiteElo "2522"]
[BlackElo "2411"]
[TimeControl "180+1"]
[EndTime "11:34:05 PDT"]
[Termination "Irishchessman16 won by resignation"]

1. d4 {[%clk 0:03:00.9]} 1... d5 {[%clk 0:02:56.2]} 2. c4 {[%clk 0:03:01.2]}
2... c6 {[%clk 0:02:55.6]} 3. Nf3 {[%clk 0:03:00.8]} 3... Nf6 {[%clk 0:02:54.6]}
4. Qc2 {[%clk 0:03:00.9]} 4... g6 {[%clk 0:02:51.3]} 5. g3 {[%clk 0:03:00.3]}
5... Bg7 {[%clk 0:02:49.7]} 6. Bg2 {[%clk 0:03:00]} 6... O-O {[%clk 0:02:50.1]}
7. O-O {[%clk 0:02:59.5]} 7... dxc4 {[%clk 0:02:49.2]} 8. Qxc4 {[%clk
0:02:59.1]} 8... Bf5 {[%clk 0:02:49.7]} 9. Nc3 {[%clk 0:02:58.3]} 9... Ne4
{[%clk 0:02:49]} 10. Nh4 {[%clk 0:02:52.2]} 10... b5 {[%clk 0:02:42.6]} 11. Qb3
{[%clk 0:02:49.2]} 11... Nxc3 {[%clk 0:02:39.8]} 12. bxc3 {[%clk 0:02:47.8]}
12... Be6 {[%clk 0:02:39]} 13. Qc2 {[%clk 0:02:46.8]} 13... Bd5 {[%clk
0:02:36.1]} 14. e4 {[%clk 0:02:46.2]} 14... Bc4 {[%clk 0:02:35.3]} 15. Rd1
{[%clk 0:02:45.8]} 15... Nd7 {[%clk 0:02:25.3]} 16. Nf3 {[%clk 0:02:44.2]} 16...
Qa5 {[%clk 0:02:17.1]} 17. a4 {[%clk 0:02:33.2]} 17... Nb6 {[%clk 0:02:14.7]}
18. Ba3 {[%clk 0:02:27.4]} 18... Nxa4 {[%clk 0:02:13.2]} 19. Bxe7 {[%clk
0:02:25.2]} 19... Qxc3 {[%clk 0:02:12.3]} 20. Qb1 {[%clk 0:02:05.2]} 20... Rfe8
{[%clk 0:02:06.4]} 21. Bd6 {[%clk 0:01:47.3]} 21... Qb3 {[%clk 0:01:58.9]} 22.
Ne5 {[%clk 0:01:45.4]} 22... Qxb1 {[%clk 0:01:49.9]} 23. Rdxb1 {[%clk
0:01:43.2]} 23... Bxe5 {[%clk 0:01:47]} 24. Bxe5 {[%clk 0:01:41.6]} 24... Nc3
{[%clk 0:01:47]} 25. Rb2 {[%clk 0:01:39.2]} 25... a5 {[%clk 0:01:43.3]} 26. Bc7
{[%clk 0:01:34.4]} 26... Ne2+ {[%clk 0:01:27.9]} 27. Kh1 {[%clk 0:01:31.4]}
27... Nxd4 {[%clk 0:01:27.6]} 28. Bxa5 {[%clk 0:01:21.7]} 28... Nb3 {[%clk
0:01:21.9]} 29. Rxb3 {[%clk 0:01:19.9]} 29... Bxb3 {[%clk 0:01:20.9]} 30. e5
{[%clk 0:01:20.1]} 30... Bd5 {[%clk 0:01:21.1]} 31. Bxd5 {[%clk 0:01:18.9]}
31... cxd5 {[%clk 0:01:22]} 32. f4 {[%clk 0:01:18.6]} 32... Ra6 {[%clk 0:01:21]}
33. Bc3 {[%clk 0:01:15.6]} 33... Rxa1+ {[%clk 0:01:19.7]} 34. Bxa1 {[%clk
0:01:16.5]} 34... Ra8 {[%clk 0:01:18.7]} 35. Bd4 {[%clk 0:01:15.8]} 35... b4
{[%clk 0:01:18.9]} 0-1

[Event "*** SCC Grand Prix: Titled Tuesday Blitz"]
[Site "Chess.com"]
[Date "2020.07.14"]
[Round "8"]
[White "FairChess_on_YouTube"]
[Black "Biranidun"]
[Result "1-0"]
[WhiteElo "3005"]
[BlackElo "2874"]
[TimeControl "180+1"]
[EndTime "11:34:06 PDT"]
[Termination "FairChess_on_YouTube won by resignation"]

1. e4 {[%clk 0:03:00.9]} 1... c5 {[%clk 0:02:59.7]} 2. Nc3 {[%clk 0:03:00.9]}
2... d6 {[%clk 0:02:59.1]} 3. Nge2 {[%clk 0:03:01]} 3... Nf6 {[%clk 0:02:58]} 4.
g3 {[%clk 0:03:01.2]} 4... Nc6 {[%clk 0:02:56.9]} 5. Bg2 {[%clk 0:03:01.1]} 5...
g6 {[%clk 0:02:57.5]} 6. O-O {[%clk 0:02:58.1]} 6... Bg7 {[%clk 0:02:57.9]} 7.
d3 {[%clk 0:02:58.5]} 7... O-O {[%clk 0:02:58.2]} 8. h3 {[%clk 0:02:58.8]} 8...
Rb8 {[%clk 0:02:58.4]} 9. a4 {[%clk 0:02:55.8]} 9... a6 {[%clk 0:02:52.3]} 10.
f4 {[%clk 0:02:55.1]} 10... Bd7 {[%clk 0:02:51.7]} 11. Be3 {[%clk 0:02:53.9]}
11... b5 {[%clk 0:02:50.2]} 12. axb5 {[%clk 0:02:53.6]} 12... axb5 {[%clk
0:02:51.1]} 13. Qd2 {[%clk 0:02:54.1]} 13... b4 {[%clk 0:02:47.6]} 14. Nd1
{[%clk 0:02:54.1]} 14... Qc7 {[%clk 0:02:46.3]} 15. g4 {[%clk 0:02:52.4]} 15...
Ra8 {[%clk 0:02:43.4]} 16. Nf2 {[%clk 0:02:41.4]} 16... Rxa1 {[%clk 0:02:42.7]}
17. Rxa1 {[%clk 0:02:40.9]} 17... h5 {[%clk 0:02:40.6]} 18. f5 {[%clk
0:02:32.2]} 18... hxg4 {[%clk 0:02:18.5]} 19. hxg4 {[%clk 0:02:31.1]} 19... Ne5
{[%clk 0:02:18.9]} 20. Bh6 {[%clk 0:02:08.6]} 20... Nfxg4 {[%clk 0:02:07.2]} 21.
Nxg4 {[%clk 0:02:06.3]} 21... Nxg4 {[%clk 0:02:08.1]} 22. Bxg7 {[%clk 0:02:06]}
22... Kxg7 {[%clk 0:02:09]} 23. Qg5 {[%clk 0:02:05.2]} 23... Nf6 {[%clk
0:00:47.4]} 24. fxg6 {[%clk 0:01:59]} 24... fxg6 {[%clk 0:00:47.6]} 25. Nf4
{[%clk 0:01:58.8]} 25... Rg8 {[%clk 0:00:28]} 26. Qxg6+ {[%clk 0:01:52.7]} 26...
Kf8 {[%clk 0:00:28.3]} 27. Ra8+ {[%clk 0:01:51.7]} 27... Ne8 {[%clk 0:00:28.6]}
28. Rxe8+ {[%clk 0:01:49.1]} 1-0

[Event "*** SCC Grand Prix: Titled Tuesday Blitz"]
[Site "Chess.com"]
[Date "2020.07.14"]
[Round "8"]
[White "AsaHoffmann"]
[Black "SzMM19"]
[Result "1/2-1/2"]
[WhiteElo "2406"]
[BlackElo "2555"]
[TimeControl "180+1"]
[EndTime "11:34:10 PDT"]
[Termination "Game drawn by repetition"]

1. d4 {[%clk 0:02:50.7]} 1... Nf6 {[%clk 0:02:59.8]} 2. Bg5 {[%clk 0:02:49.9]}
2... d5 {[%clk 0:02:58.8]} 3. Nd2 {[%clk 0:02:49.2]} 3... c5 {[%clk 0:02:58.3]}
4. e3 {[%clk 0:02:48.5]} 4... Nc6 {[%clk 0:02:58.1]} 5. c3 {[%clk 0:02:45.2]}
5... e6 {[%clk 0:02:57.9]} 6. f4 {[%clk 0:02:44.8]} 6... Bd6 {[%clk 0:02:55.9]}
7. Ngf3 {[%clk 0:02:44]} 7... O-O {[%clk 0:02:55.5]} 8. Bd3 {[%clk 0:02:43.6]}
8... h6 {[%clk 0:02:54.7]} 9. Bh4 {[%clk 0:02:43.2]} 9... b6 {[%clk 0:02:54.1]}
10. O-O {[%clk 0:02:42.5]} 10... Bb7 {[%clk 0:02:54.2]} 11. Ne5 {[%clk
0:02:41.2]} 11... Be7 {[%clk 0:02:53.3]} 12. Qf3 {[%clk 0:02:39.9]} 12... Nd7
{[%clk 0:02:36.5]} 13. Bxe7 {[%clk 0:02:34]} 13... Nxe7 {[%clk 0:02:33.1]} 14.
Qh3 {[%clk 0:02:30.8]} 14... f5 {[%clk 0:02:19.1]} 15. g4 {[%clk 0:02:28.5]}
15... Nxe5 {[%clk 0:02:18.7]} 16. fxe5 {[%clk 0:02:27.4]} 16... fxg4 {[%clk
0:02:09.2]} 17. Qxg4 {[%clk 0:02:26.8]} 17... Qd7 {[%clk 0:02:07.5]} 18. Rxf8+
{[%clk 0:02:21.4]} 18... Rxf8 {[%clk 0:02:06.6]} 19. Rf1 {[%clk 0:02:20.4]}
19... Rxf1+ {[%clk 0:02:06.2]} 20. Kxf1 {[%clk 0:02:18.1]} 20... Nf5 {[%clk
0:02:02.5]} 21. Bxf5 {[%clk 0:02:16.3]} 21... exf5 {[%clk 0:02:03.4]} 22. Qg6
{[%clk 0:02:07.2]} 22... Qb5+ {[%clk 0:01:47.8]} 23. c4 {[%clk 0:01:49.5]} 23...
Qxb2 {[%clk 0:01:34.8]} 24. e6 {[%clk 0:01:34.8]} 24... Qxd2 {[%clk 0:01:05.9]}
25. e7 {[%clk 0:01:28.3]} 25... Qd1+ {[%clk 0:00:57.8]} 26. Kf2 {[%clk
0:01:25.8]} 26... Qd2+ {[%clk 0:00:56]} 27. Kf1 {[%clk 0:01:19.8]} 27... Qd1+
{[%clk 0:00:53.1]} 28. Kf2 {[%clk 0:01:19.1]} 28... Qd2+ {[%clk 0:00:53.1]} 29.
Kf1 {[%clk 0:01:14.7]} 1/2-1/2

[Event "*** SCC Grand Prix: Titled Tuesday Blitz"]
[Site "Chess.com"]
[Date "2020.07.14"]
[Round "8"]
[White "Forantes"]
[Black "Oglob71"]
[Result "0-1"]
[WhiteElo "2372"]
[BlackElo "2531"]
[TimeControl "180+1"]
[EndTime "11:34:11 PDT"]
[Termination "Oglob71 won by resignation"]

1. Nf3 {[%clk 0:03:00.9]} 1... Nf6 {[%clk 0:02:58.8]} 2. g3 {[%clk 0:03:01.2]}
2... c5 {[%clk 0:02:56.6]} 3. Bg2 {[%clk 0:03:00.9]} 3... Nc6 {[%clk 0:02:57.2]}
4. d4 {[%clk 0:03:01.1]} 4... cxd4 {[%clk 0:02:54]} 5. Nxd4 {[%clk 0:03:02]}
5... Qb6 {[%clk 0:02:51.7]} 6. Nb3 {[%clk 0:02:48.8]} 6... d5 {[%clk 0:02:51.3]}
7. O-O {[%clk 0:02:47.3]} 7... e6 {[%clk 0:02:49.3]} 8. Nc3 {[%clk 0:02:47.6]}
8... Be7 {[%clk 0:02:48.8]} 9. e4 {[%clk 0:02:47.4]} 9... d4 {[%clk 0:02:43.4]}
10. e5 {[%clk 0:02:16.6]} 10... dxc3 {[%clk 0:02:43.6]} 11. exf6 {[%clk
0:02:16]} 11... Bxf6 {[%clk 0:02:44]} 12. bxc3 {[%clk 0:01:48.9]} 12... O-O
{[%clk 0:02:41.2]} 13. Be3 {[%clk 0:01:44.8]} 13... Qc7 {[%clk 0:02:39.6]} 14.
Nd4 {[%clk 0:01:41.8]} 14... Ne5 {[%clk 0:02:34.1]} 15. Nb5 {[%clk 0:01:17.7]}
15... Qa5 {[%clk 0:02:27.9]} 16. Rb1 {[%clk 0:00:49.7]} 16... Rd8 {[%clk
0:02:08.1]} 17. Qe2 {[%clk 0:00:48.2]} 17... a6 {[%clk 0:02:02]} 18. Nd4 {[%clk
0:00:35.5]} 18... Qxc3 {[%clk 0:02:00.1]} 19. Rb3 {[%clk 0:00:31.2]} 19... Qc7
{[%clk 0:01:57.1]} 20. Rfb1 {[%clk 0:00:31.3]} 20... Rb8 {[%clk 0:01:51.5]} 21.
Bf4 {[%clk 0:00:27.6]} 21... Rxd4 {[%clk 0:01:41.4]} 0-1

[Event "*** SCC Grand Prix: Titled Tuesday Blitz"]
[Site "Chess.com"]
[Date "2020.07.14"]
[Round "8"]
[White "dpopadic"]
[Black "isainz"]
[Result "1-0"]
[WhiteElo "2315"]
[BlackElo "2142"]
[TimeControl "180+1"]
[EndTime "11:34:11 PDT"]
[Termination "dpopadic won by resignation"]

1. e4 {[%clk 0:03:00.9]} 1... c5 {[%clk 0:02:53.5]} 2. Nc3 {[%clk 0:03:00.6]}
2... Nc6 {[%clk 0:02:50.3]} 3. f4 {[%clk 0:03:00.6]} 3... e6 {[%clk 0:02:39.7]}
4. Nf3 {[%clk 0:02:59.5]} 4... Nge7 {[%clk 0:02:32.3]} 5. Bb5 {[%clk 0:02:58.8]}
5... a6 {[%clk 0:02:31.2]} 6. Bxc6 {[%clk 0:02:58.3]} 6... Nxc6 {[%clk 0:02:31]}
7. d3 {[%clk 0:02:58.8]} 7... Be7 {[%clk 0:02:24.2]} 8. O-O {[%clk 0:02:58.6]}
8... O-O {[%clk 0:02:18.1]} 9. Bd2 {[%clk 0:02:58.7]} 9... d5 {[%clk 0:02:09.4]}
10. Kh1 {[%clk 0:02:58.1]} 10... d4 {[%clk 0:01:59.7]} 11. Ne2 {[%clk 0:02:57]}
11... b5 {[%clk 0:01:57.7]} 12. Ng3 {[%clk 0:02:56.6]} 12... Bb7 {[%clk
0:01:57.2]} 13. Qe2 {[%clk 0:02:39.3]} 13... Qc7 {[%clk 0:01:48]} 14. e5 {[%clk
0:02:38.7]} 14... c4 {[%clk 0:01:39.4]} 15. Ne4 {[%clk 0:02:38.4]} 15... f5
{[%clk 0:01:14.7]} 16. exf6 {[%clk 0:02:35.1]} 16... Bxf6 {[%clk 0:01:14]} 17.
dxc4 {[%clk 0:02:26.6]} 17... e5 {[%clk 0:00:48.2]} 18. cxb5 {[%clk 0:02:21.2]}
18... axb5 {[%clk 0:00:47.8]} 19. fxe5 {[%clk 0:02:11.7]} 19... Bxe5 {[%clk
0:00:43.8]} 20. Qxb5 {[%clk 0:02:02.7]} 20... Bf4 {[%clk 0:00:20.6]} 21. Nc5
{[%clk 0:01:49.1]} 21... Bxd2 {[%clk 0:00:17.6]} 22. Nxd2 {[%clk 0:01:47.9]}
22... Rxf1+ {[%clk 0:00:16.7]} 23. Rxf1 {[%clk 0:01:46.8]} 23... Ra5 {[%clk
0:00:16]} 24. Qxb7 {[%clk 0:01:42.1]} 1-0